[Event "Istanbul Open 2018"]
[Site "Istanbul"]
[Date "2018.09.02"]
[Round "1"]
[White "Ozsakallioglu, Akin"]
[Black "Aliakbarov, Anar"]
[Result "1-0"]
[ECO "C42"]
[WhiteElo "1861"]
[BlackElo "2322"]
[Annotator "ChessBase"]
[PlyCount "87"]
[EventDate "2018.09.02"]
[EventType "swiss"]
[EventCountry "TUR"]
[SourceTitle "playchess.com"]
[Source "ChessBase"]
[SourceQuality "1"]
[TimeControl "5400+30"]

1. e4 {[%emt 0:00:30]} e5 {[%emt 0:01:30]} 2. Nf3 {[%emt 0:00:00]} Nf6 {[%emt 0:00:30]} 3. Nxe5 {[%emt 0:00:00]} d6 {[%emt 0:00:30]} 4. Nc4 {[%emt 0:00:30]} Nxe4 {[%emt 0:00:00]} 5. Qe2 {[%emt 0:00:00]} Qe7 {[%emt 0:00:00]} 6. Ne3 {[%emt 0:00:00]} c6 {[%emt 0:00:30]} 7. b3 {[%emt 0:00:30]} Qe5 {[%emt 0:01:30]} 8. c3 {[%emt 0:00:30]} d5 {[%emt 0:10:30]} 9. Bb2 {[%emt 0:01:30]} Be7 {[%emt 0:04:30]} 10. g3 {[%emt 0:03:30]} O-O {[%emt 0:03:30]} 11. Bg2 {[%emt 0:02:30]} Re8 {[%emt 0:06:30]} 12. O-O {[%emt 0:03:30]} Nd7 {[%emt 0:05:30]} 13. d3 {[%emt 0:10:30]} Nef6 {[%emt 0:01:30]} 14. Nd2 {[%emt 0:02:30]} Qc7 {[%emt 0:08:30]} 15. Nf3 {[%emt 0:06:30]} a5 {[%emt 0:03:30]} 16. c4 {[%emt 0:06:30]} dxc4 {[%emt 0:02:30]} 17. bxc4 {[%emt 0:01:30]} a4 {[%emt 0:02:30]} 18. Rac1 {[%emt 0:03:30]} Bf8 {[%emt 0:06:30]} 19. Qc2 {[%emt 0:01:30]} g6 {[%emt 0:03:30]} 20. Rfd1 {[%emt 0:02:30]} Bh6 {[%emt 0:05:30]} 21. Re1 {[%emt 0:00:30]} b6 {[%emt 0:07:30]} 22. d4 {[%emt 0:04:30]} Bb7 {[%emt 0:00:30]} 23. Qb1 {[%emt 0:08:30]} Bg7 {[%emt 0:05:10]} 24. Ba3 {[%emt 0:07:30]} c5 {[%emt 0:01:29]} 25. d5 {[%emt 0:01:30]} Ne4 {[%emt 0:02:06]} 26. Bb2 {[%emt 0:01:30]} Qd6 {[%emt 0:02:33]} 27. Bxg7 {[%emt 0:03:30]} Kxg7 {[%emt 0:00:04]} 28. Nh4 {[%emt 0:00:30]} Nxg3 {[%emt 0:08:37]} 29. hxg3 {[%emt 0:00:30]} Kg8 {[%emt 0:00:17]} 30. Nf3 {[%emt 0:03:30]} f6 {[%emt 0:02:52]} 31. Nc2 {[%emt 0:00:30]} b5 {[%emt 0:03:11]} 32. Qxb5 {[%emt 0:02:30]} Reb8 {[%emt 0:00:04]} 33. Re6 {[%emt 0:00:30]} Qc7 {[%emt 0:00:35]} 34. Re7 {[%emt 0:02:30]} Bc8 {[%emt 0:02:27]} 35. Qc6 {[%emt 0:00:00]} Qxc6 {[%emt 0:00:23]} 36. dxc6 {[%emt 0:00:00]} Nf8 {[%emt 0:00:08]} 37. Na3 {[%emt 0:02:30]} Rb2 {[%emt 0:00:27]} 38. Rc2 {[%emt 0:00:30]} Rab8 {[%emt 0:00:19]} 39. c7 {[%emt 0:00:30]} R8b4 {[%emt 0:00:13]} 40. Re8 {[%emt 0:00:30]} Bg4 {[%emt 0:01:25]} 41. c8=Q {[%emt 0:00:30]} Bxc8 {[%emt 0:00:06]} 42. Rxc8 {[%emt 0:00:00]} Rxc2 {[%emt 0:00:15]} 43. Nxc2 {[%emt 0:00:00]} Rb2 {[%emt 0:00:32]} 44. Nfe1 {[%emt 0:00:30]} 1-0

[Event "Istanbul Open 2018"]
[Site "Istanbul"]
[Date "2018.09.02"]
[Round "1"]
[White "Dinke, Abdullah"]
[Black "Nuri, Murad"]
[Result "0-1"]
[ECO "C50"]
[WhiteElo "1847"]
[BlackElo "2284"]
[Annotator "ChessBase"]
[PlyCount "92"]
[EventDate "2018.09.02"]
[EventType "swiss"]
[EventCountry "TUR"]
[SourceTitle "playchess.com"]
[Source "ChessBase"]
[SourceQuality "1"]
[TimeControl "5400+30"]

1. e4 {[%emt 0:00:30]} e5 {[%emt 0:03:30]} 2. Nf3 {[%emt 0:02:30]} Nc6 {[%emt 0:00:00]} 3. Bc4 {[%emt 0:00:30]} Bc5 {[%emt 0:02:00]} 4. d3 {[%emt 0:01:30]} Nf6 {[%emt 0:00:00]} 5. Nc3 {[%emt 0:00:30]} d6 {[%emt 0:00:00]} 6. a3 {[%emt 0:00:00]} a6 {[%emt 0:01:30]} 7. b4 {[%emt 0:12:00]} Ba7 {[%emt 0:01:30]} 8. Nd5 {[%emt 0:00:30]} Nxd5 {[%emt 0:06:30]} 9. Bxd5 {[%emt 0:01:30]} Qf6 {[%emt 0:00:30]} 10. c3 {[%emt 0:08:30]} Ne7 {[%emt 0:03:30]} 11. Bb3 {[%emt 0:05:30]} h6 {[%emt 0:02:30]} 12. Be3 {[%emt 0:03:30]} Ng6 {[%emt 0:01:30]} 13. Qd2 {[%emt 0:00:30]} O-O {[%emt 0:15:30]} 14. Bxa7 {[%emt 0:11:30]} Rxa7 {[%emt 0:00:00]} 15. Qe3 {[%emt 0:00:30]} Ra8 {[%emt 0:01:00]} 16. O-O {[%emt 0:00:30]} Kh8 {[%emt 0:02:30]} 17. Ra2 {[%emt 0:09:30]} Bg4 {[%emt 0:06:30]} 18. Bd1 {[%emt 0:00:30]} Qe6 {[%emt 0:10:30]} 19. Rd2 {[%emt 0:00:30]} f5 {[%emt 0:00:30]} 20. exf5 {[%emt 0:02:30]} Bxf5 {[%emt 0:01:30]} 21. d4 {[%emt 0:00:30]} e4 {[%emt 0:00:30]} 22. d5 {[%emt 0:00:30]} Qf7 {[%emt 0:03:30]} 23. Ne1 {[%emt 0:00:30]} Ne7 {[%emt 0:09:30]} 24. c4 {[%emt 0:02:30]} b5 {[%emt 0:07:30]} 25. Be2 {[%emt 0:13:30]} bxc4 {[%emt 0:08:02]} 26. Bxc4 {[%emt 0:00:30]} Bh7 {[%emt 0:00:01]} 27. Nc2 {[%emt 0:00:30]} Nf5 {[%emt 0:00:13]} 28. Qe2 {[%emt 0:00:30]} a5 {[%emt 0:00:02]} 29. b5 {[%emt 0:00:30]} Qf6 {[%emt 0:00:54]} 30. Rb1 {[%emt 0:02:30]} e3 {[%emt 0:04:13]} 31. fxe3 {[%emt 0:00:30]} Rae8 {[%emt 0:00:01]} 32. Bd3 {[%emt 0:08:20]} Qg5 {[%emt 0:01:48]} 33. Bxf5 {[%emt 0:01:52]} Rxf5 {[%emt 0:00:04]} 34. Qc4 {[%emt 0:01:01]} Rxe3 {[%emt 0:01:25]} 35. Rbd1 {[%emt 0:02:40]} Re7 {[%emt 0:02:04]} 36. h4 {[%emt 0:00:49]} Qf6 {[%emt 0:00:43]} 37. Nd4 {[%emt 0:01:13]} Rf4 {[%emt 0:00:22]} 38. Qc6 {[%emt 0:00:11]} Bg8 {[%emt 0:01:53]} 39. Qa8 {[%emt 0:00:54]} Kh7 {[%emt 0:00:36]} 40. Nf3 {[%emt 0:05:51]} Qg6 {[%emt 0:00:51]} 41. Rf1 {[%emt 0:00:42]} Re3 {[%emt 0:00:21]} 42. Rdf2 {[%emt 0:00:04]} Rxa3 {[%emt 0:02:53]} 43. Kh2 {[%emt 0:00:49]} Qh5 {[%emt 0:00:20]} 44. Qd8 {[%emt 0:00:40]} Bxd5 {[%emt 0:00:45]} 45. Qxc7 {[%emt 0:00:44]} Bxf3 {[%emt 0:00:11]} 46. gxf3 {[%emt 0:01:03]} Rxh4+ {[%emt 0:00:08]} 0-1

[Event "Istanbul Open 2018"]
[Site "Istanbul"]
[Date "2018.09.02"]
[Round "1"]
[White "Gundogan, Sinem Cagla"]
[Black "Olgun, Efe"]
[Result "1-0"]
[ECO "B24"]
[WhiteElo "1834"]
[BlackElo "1334"]
[Annotator "NA"]
[PlyCount "101"]
[EventDate "2018.09.02"]
[EventType "swiss"]
[EventCountry "TUR"]
[SourceTitle "playchess.com"]
[Source "ChessBase"]
[SourceQuality "1"]
[TimeControl "5400+30"]

1. e4 {[%emt 0:00:30]} c5 {[%emt 0:00:30]} 2. Nc3 {[%emt 0:00:00]} Nc6 {[%emt 0:00:30]} 3. g3 {[%emt 0:00:00]} g6 {[%emt 0:01:30]} 4. Bg2 {[%emt 0:00:30]} Bg7 {[%emt 0:00:00]} 5. d3 {[%emt 0:00:00]} e6 {[%emt 0:03:00]} 6. Be3 {[%emt 0:00:00]} Qa5 {[%emt 0:01:30]} 7. Qd2 {[%emt 0:02:30] B24: Closed Sicilian: 3 g3 sidelines} Nge7 {[%emt 0:01:30]} (7... Nd4 8. Nf3 Ne7 9. O-O O-O 10. Nd5 Nec6 11. Ne7+ Kh8 12. Nxc6 Qxd2 13. Nxd2 dxc6 14. c3 e5 15. f4 Nc2 16. Bxc5 Nxa1 17. Bxf8 Bxf8 18. Rxa1 {½-½ (38) Kazakov,M (2474)-Truskavetsky,A (2412) Alushta 2006}) 8. Bh6 {[%emt 0:08:30]} O-O {[%emt 0:12:30]} 9. Bxg7 {[%emt 0:00:30]} Kxg7 {[%emt 0:00:30]} 10. h4 {[%emt 0:01:30]} h5 {[%emt 0:04:30] [#]} 11. g4 $1 $146 {[%emt 0:12:30]} ({Predecessor:} 11. Nce2 Qxd2+ 12. Kxd2 d5 13. exd5 Nxd5 14. Bxd5 exd5 {½-½ (51) Cruz,P (2003)-Leonardo,J (2299) Lisbon 1999}) 11... hxg4 {[%emt 0:06:30]} 12. h5 {[%emt 0:04:30]} Rh8 {[%emt 0:01:30]} 13. h6+ {[%emt 0:00:30]} Kf8 {[%emt 0:03:30]} 14. h7 {[%emt 0:06:30]} f6 {[%emt 0:01:30]} 15. Qh6+ {[%emt 0:03:30]} Kf7 {[%emt 0:00:30] [#]} 16. O-O-O $1 {[%emt 0:03:30]} Rb8 {[%emt 0:08:30] [#]} (16... b5 $16) 17. f3 $1 {[%emt 0:08:30]} d5 $2 {[%emt 0:08:30]} (17... g3 {was worth a try.}) 18. exd5 {[%emt 0:06:30]} (18. fxg4 $142 d4 {[#]} 19. e5 $1 {[%mdl 512]} dxc3 20. exf6 Kxf6 21. Rf1+ Nf5 22. bxc3) 18... Nxd5 {[%emt 0:01:30]} 19. Nxd5 {[%emt 0:04:30]} exd5 {[%emt 0:01:30]} 20. Kb1 {[%emt 0:04:30]} (20. fxg4 $142 Qxa2 21. Nh3) 20... Qa4 {[%emt 0:04:30]} 21. Rd2 {[%emt 0:03:30]} (21. Ne2 $142 Nb4 22. Nf4) 21... Ne7 {[%emt 0:05:30]} 22. d4 {[%emt 0:03:30]} ({Better is} 22. fxg4 $16 Qxg4 23. Re2) 22... Qc6 {[%emt 0:12:05]} (22... g3 $14) 23. Qf4 {[%emt 0:04:30]} gxf3 {[%emt 0:07:05]} 24. Qxb8 {[%emt 0:01:30]} fxg2 {[%emt 0:00:07]} 25. Rxg2 {[%emt 0:00:30]} Qa6 {[%emt 0:04:56]} 26. Nf3 {[%emt 0:02:30]} cxd4 {[%emt 0:02:31]} 27. Nxd4 {[%emt 0:00:58]} Qb6 {[%emt 0:00:41]} 28. Qf4 {[%emt 0:02:45]} Nf5 {[%emt 0:01:03]} 29. Nf3 {[%emt 0:05:42]} Bd7 {[%emt 0:02:51]} 30. Re2 {[%emt 0:02:01]} d4 $18 {[%emt 0:01:38]} (30... Qd6 $1 $14 31. Qxd6 Nxd6) 31. a3 {[%emt 0:05:44]} Bc6 {[%emt 0:01:24]} 32. Ne5+ {[%emt 0:02:18]} fxe5 {[%emt 0:00:48]} 33. Qxe5 {[%emt 0:00:15]} Qd8 {[%emt 0:01:17]} 34. Rg1 {[%emt 0:01:24]} Qf6 {[%emt 0:00:29]} 35. Qc7+ {[%emt 0:00:28]} Kf8 {[%emt 0:00:29]} 36. Rge1 {[%emt 0:00:51]} Qd6 {[%emt 0:00:35]} 37. Qa5 {[%emt 0:00:31]} Rxh7 {[%emt 0:00:19]} 38. Re6 {[%emt 0:00:10]} Qd7 {[%emt 0:00:39]} 39. Rxg6 {[%emt 0:00:24]} Rf7 {[%emt 0:00:31]} 40. Qc5+ {[%emt 0:00:13]} Ne7 {[%emt 0:00:20]} 41. Rd6 {[%emt 0:00:14]} Qc7 {[%emt 0:00:37]} 42. Qxd4 {[%emt 0:00:11]} Kg8 {[%emt 0:00:32]} 43. Rg1+ {[%emt 0:00:14]} Kf8 {[%emt 0:00:26]} 44. Rd8+ {[%emt 0:00:24]} Be8 {[%emt 0:00:22]} 45. Qh8+ {[%emt 0:00:07]} Ng8 {[%emt 0:00:14]} 46. Qxg8+ {[%emt 0:00:07]} Ke7 {[%emt 0:00:09]} 47. Qxe8+ {[%emt 0:00:13]} Kf6 {[%emt 0:00:14]} 48. Qh8+ {[%emt 0:00:22]} Ke6 {[%emt 0:00:47]} 49. Re1+ {[%emt 0:00:21]} Kf5 {[%emt 0:00:08]} 50. Rf1+ {[%emt 0:00:11]} Kg5 {[%emt 0:00:36]} 51. Rg8+ {[%emt 0:00:07]} 1-0

[Event "Istanbul Open 2018"]
[Site "Istanbul"]
[Date "2018.09.02"]
[Round "1"]
[White "Yetkin, Ayhan"]
[Black "Khalilov, Emin"]
[Result "1-0"]
[ECO "D38"]
[WhiteElo "1801"]
[BlackElo "1528"]
[Annotator "NA"]
[PlyCount "59"]
[EventDate "2018.09.02"]
[EventType "swiss"]
[EventCountry "TUR"]
[SourceTitle "playchess.com"]
[Source "ChessBase"]
[SourceQuality "1"]
[TimeControl "5400+30"]

1. d4 {[%emt 0:00:30]} Nf6 2. c4 {[%emt 0:00:00]} e6 {[%emt 0:04:00]} 3. Nf3 {[%emt 0:00:00]} d5 {[%emt 0:00:30]} 4. Nc3 {[%emt 0:01:30]} Bb4 {[%emt 0:00:30]} 5. Qa4+ {[%emt 0:01:30]} Nc6 {[%emt 0:01:30]} 6. e3 {[%emt 0:01:30]} O-O {[%emt 0:02:30]} 7. Bd2 {[%emt 0:01:30]} Bxc3 {[%emt 0:03:30]} 8. Bxc3 {[%emt 0:00:30]} Ne4 {[%emt 0:05:30]} 9. Bd3 {[%emt 0:04:30]} f5 {[%emt 0:04:30]} 10. Qc2 {[%emt 0:05:30]} Nxc3 {[%emt 0:22:30]} 11. Qxc3 {[%emt 0:08:30]} Ne7 {[%emt 0:05:30]} 12. O-O {[%emt 0:05:30]} b6 {[%emt 0:08:30]} 13. Ne5 {[%emt 0:11:30]} Bb7 {[%emt 0:03:30]} 14. f3 $14 {[%emt 0:07:30]} Rc8 {[%emt 0:07:30]} 15. c5 {[%emt 0:03:30]} c6 {[%emt 0:02:30]} 16. e4 {[%emt 0:07:30]} b5 {[%emt 0:03:30]} 17. a4 {[%emt 0:06:30]} a6 {[%emt 0:00:30]} 18. exf5 {[%emt 0:05:30]} Nxf5 {[%emt 0:00:30]} 19. g4 {[%emt 0:05:30]} Ne7 {[%emt 0:03:30]} 20. Qc2 {[%emt 0:01:30]} g6 {[%emt 0:00:38]} 21. Qd2 {[%emt 0:04:24]} Kg7 {[%emt 0:01:43]} 22. Rae1 {[%emt 0:02:07]} Ng8 {[%emt 0:02:21]} 23. Kh1 {[%emt 0:05:25]} Qe7 {[%emt 0:01:03]} 24. f4 {[%emt 0:00:58]} Rce8 {[%emt 0:05:16]} 25. f5 {[%emt 0:02:06]} gxf5 {[%emt 0:01:27]} 26. gxf5 {[%emt 0:00:07]} Kh8 {[%emt 0:00:18]} 27. fxe6 {[%emt 0:01:42]} Rxf1+ {[%emt 0:00:17]} 28. Rxf1 {[%emt 0:00:42]} Qxe6 {[%emt 0:00:06]} 29. Nf7+ {[%emt 0:02:12]} Kg7 {[%emt 0:00:10]} 30. Qg5+ {[%emt 0:00:53]} 1-0

[Event "Istanbul Open 2018"]
[Site "Istanbul"]
[Date "2018.09.02"]
[Round "1"]
[White "Kelpetin, Umut Can"]
[Black "Eryigit, Yakup"]
[Result "0-1"]
[ECO "B23"]
[WhiteElo "1798"]
[BlackElo "2030"]
[Annotator "NA"]
[PlyCount "44"]
[EventDate "2018.09.02"]
[EventType "swiss"]
[EventCountry "TUR"]
[SourceTitle "playchess.com"]
[Source "ChessBase"]
[SourceQuality "1"]
[TimeControl "5400+30"]

{[%evp 8,44,0,32767,32767,32767,32767,32767,32767,32767,32767,32767,32767,32767,32767,43,64,72,40,38,60,-8,0,32767,32767,-43,-25,-124,-113,-173,-189,-393,-393,-556,-586,-983,-1025,-1080,-759]} 1. e4 {[%emt 0:00:30]} c5 {[%emt 0:00:30]} 2. Nc3 {[%emt 0:00:00]} Nc6 {[%emt 0:02:30]} 3. f4 {[%emt 0:00:00]} e6 {[%emt 0:03:30]} 4. Nf3 {[%emt 0:04:30]} d5 {[%emt 0:01:30] LiveBook: 480 Games} 5. exd5 {[%emt 0:00:30]} exd5 {[%emt 0:00:30]} 6. Bb5 {[%emt 0:00:30]} Nge7 {[%emt 0:04:30]} 7. Qe2 {[%emt 0:03:30]} Qd6 {[%emt 0:01:30]} 8. d4 {[%emt 0:05:30] B23: Closed Sicilian: Lines without g3} cxd4 {[%emt 0:03:30]} 9. Nxd4 {[%emt 0:04:30]} a6 {[%emt 0:00:30]} (9... g6 10. Be3 Bg7 11. O-O-O O-O 12. Qf2 Bg4 13. Rde1 Rfe8 14. h3 Bd7 15. Bxc6 bxc6 {½-½ (25) Mons,L (2461)-Nijboer,F (2546) Germany 2017}) 10. Bxc6+ {[%emt 0:01:30]} bxc6 {[%emt 0:00:00]} 11. O-O $146 {[%emt 0:02:30]} ({Predecessor:} 11. Nb3 a5 12. Be3 a4 13. Nc5 Ra5 14. N5xa4 Rxa4 15. Nxa4 Qb4+ {1-0 (33) Ankur Mahesh,G (1576)-Soham,D (1815) Mumbai 2016}) 11... c5 {[%emt 0:01:00]} 12. Nf3 {[%emt 0:02:30]} g6 {[%emt 0:06:30]} 13. Re1 {[%emt 0:05:30]} Ra7 {[%emt 0:01:30]} 14. Qe5 {[%emt 0:15:30]} (14. Qd2 $14) 14... Qxe5 {[%emt 0:00:30]} 15. Nxe5 {[%emt 0:00:30]} Be6 {[%emt 0:01:30]} 16. g4 {[%emt 0:11:30]} ({White should try} 16. b3 $14) 16... Bg7 {[%emt 0:07:30]} 17. f5 {[%emt 0:00:30]} ({Besser ist} 17. Na4 $15) 17... gxf5 {[%emt 0:00:00]} 18. gxf5 {[%emt 0:00:30]} Nxf5 {[%emt 0:00:00]} 19. Nxd5 $2 {[%emt 0:04:30]} (19. Bf4) 19... Bxd5 {[%emt 0:00:30]} 20. Nc6+ {[%emt 0:04:30]} (20. Ng6+ $142 Kd7 21. Nxh8) 20... Kd7 {[%emt 0:00:30]} 21. Nxa7 {[%emt 0:00:30]} Bd4+ {[%emt 0:04:30]} 22. Kf1 {[%emt 0:00:30]} Rg8 $19 {[%emt 0:02:30]} 0-1

[Event "Istanbul Open 2018"]
[Site "Istanbul"]
[Date "2018.09.02"]
[Round "1"]
[White "Tinarlioglu, Emre"]
[Black "Idrisov, Tabriz"]
[Result "1-0"]
[ECO "A45"]
[WhiteElo "1796"]
[BlackElo "2171"]
[Annotator "NA"]
[PlyCount "53"]
[EventDate "2018.09.02"]
[EventType "swiss"]
[EventCountry "TUR"]
[SourceTitle "playchess.com"]
[Source "ChessBase"]
[SourceQuality "1"]
[TimeControl "5400+30"]

1. d4 {[%emt 0:00:30]} Nf6 {[%emt 0:00:30]} 2. Bg5 {[%emt 0:00:00]} Ne4 {[%emt 0:00:30]} 3. Bf4 {[%emt 0:00:00]} c5 {[%emt 0:00:30]} 4. f3 {[%emt 0:00:00]} Nf6 {[%emt 0:00:30]} 5. dxc5 {[%emt 0:00:00]} Qa5+ {[%emt 0:00:30]} 6. Nc3 {[%emt 0:00:30]} Qxc5 {[%emt 0:00:30]} 7. e4 {[%emt 0:00:00]} d6 {[%emt 0:00:30]} 8. Qd2 {[%emt 0:01:00]} a6 {[%emt 0:02:30] A45: Trompowsky Attack} (8... Nbd7 9. Be3 Qc6 10. Nge2 e5 11. Nc1 Be7 12. Be2 O-O 13. a4 Nb6 14. N1a2 d5 15. Bb5 Qd6 16. a5 {1-0 (54) Vitiugov,N (2742)-Cheparinov,I (2682) Dubai 2014}) 9. O-O-O {[%emt 0:00:30]} Nbd7 {[%emt 0:01:30]} 10. g4 {[%emt 0:00:30]} h6 {[%emt 0:04:30]} 11. h4 {[%emt 0:03:30]} b5 {[%emt 0:00:30] LiveBook: 3 Games} 12. Be3 {[%emt 0:04:30]} Qc7 {[%emt 0:01:30]} 13. Nh3 {[%emt 0:01:30]} e6 {[%emt 0:04:30]} 14. g5 {[%emt 0:02:30]} Nh5 {[%emt 0:04:30]} 15. Rg1 $146 {[%emt 0:03:30]} ({Predecessor:} 15. Bf2 Bb7 16. Be2 {½-½ (60) Costachi,M (2356)-Liu,Y (2364) Durban 2014}) 15... Ne5 {[%emt 0:07:30]} 16. Be2 {[%emt 0:01:30]} (16. Qf2 $16) 16... Nc4 $2 {[%emt 0:03:30]} (16... hxg5 $1 $11 {and Black is okay.} 17. hxg5 (17. Nxg5 f6 $14) 17... Bd7) 17. Bxc4 $1 {[%emt 0:00:30]} Qxc4 {[%emt 0:01:30]} 18. Kb1 {[%emt 0:03:30]} Bd7 {[%emt 0:06:30]} 19. Nf4 {[%emt 0:05:30]} Nxf4 {[%emt 0:06:30]} 20. Bxf4 {[%emt 0:00:00]} b4 {[%emt 0:00:00]} 21. Ne2 {[%emt 0:00:00]} e5 {[%emt 0:04:00]} 22. gxh6 {[%emt 0:04:30]} Bb5 {[%emt 0:21:30]} 23. hxg7 {[%emt 0:03:30]} Bxg7 {[%emt 0:01:30]} 24. Rxg7 {[%emt 0:00:00]} Qxe2 {[%emt 0:00:30]} 25. Qd5 {[%emt 0:00:00]} O-O-O $18 {[%emt 0:04:30]} 26. Rxf7 {[%emt 0:00:30]} Bd7 {[%emt 0:01:30]} 27. Bg5 {[%emt 0:00:30]} 1-0

[Event "Istanbul Open 2018"]
[Site "Istanbul"]
[Date "2018.09.02"]
[Round "1"]
[White "Acar, Cengiz Can"]
[Black "Ozbek, Ege"]
[Result "1-0"]
[ECO "A17"]
[WhiteElo "1755"]
[BlackElo "1564"]
[Annotator "NA"]
[PlyCount "75"]
[EventDate "2018.09.02"]
[EventType "swiss"]
[EventCountry "TUR"]
[SourceTitle "playchess.com"]
[Source "ChessBase"]
[SourceQuality "1"]
[TimeControl "5400+30"]

1. g3 {[%emt 0:00:30]} d5 {[%emt 0:00:30]} 2. Bg2 {[%emt 0:00:00]} Nf6 {[%emt 0:00:30]} 3. c4 {[%emt 0:00:00]} e6 {[%emt 0:00:30]} 4. d4 {[%emt 0:03:30]} c6 {[%emt 0:02:30]} 5. cxd5 {[%emt 0:01:30]} exd5 {[%emt 0:01:30]} 6. Nc3 {[%emt 0:01:30]} Bb4 {[%emt 0:02:30]} 7. Qb3 {[%emt 0:07:30]} Bxc3+ {[%emt 0:02:30]} 8. bxc3 {[%emt 0:02:30]} O-O {[%emt 0:01:30]} 9. Nf3 {[%emt 0:05:30]} Nbd7 {[%emt 0:03:30]} 10. O-O {[%emt 0:03:30]} Re8 {[%emt 0:04:30]} 11. e3 {[%emt 0:00:30]} b6 {[%emt 0:01:30]} 12. Re1 {[%emt 0:08:30]} Bb7 {[%emt 0:02:30]} 13. Bb2 {[%emt 0:07:30]} Ne4 {[%emt 0:04:30]} 14. c4 {[%emt 0:01:30]} Ndf6 {[%emt 0:02:30]} 15. Ne5 {[%emt 0:00:30]} c5 {[%emt 0:05:30]} 16. Rad1 {[%emt 0:04:30]} dxc4 {[%emt 0:01:30]} 17. Qxc4 {[%emt 0:11:30]} Bd5 {[%emt 0:02:30]} 18. Qa4 {[%emt 0:00:00]} Qc7 {[%emt 0:01:30]} 19. f3 {[%emt 0:07:00]} Nd6 {[%emt 0:00:30]} 20. e4 {[%emt 0:00:30]} Bb7 {[%emt 0:01:30]} 21. Bf1 {[%emt 0:03:30]} a6 {[%emt 0:01:30]} 22. Qb3 {[%emt 0:00:30]} Nd7 {[%emt 0:01:30]} 23. Nxd7 {[%emt 0:02:30]} Qxd7 {[%emt 0:00:30]} 24. dxc5 {[%emt 0:00:30]} bxc5 {[%emt 0:00:30]} 25. Qc3 {[%emt 0:00:30]} f6 {[%emt 0:00:30]} 26. Qxc5 {[%emt 0:02:30]} Rad8 {[%emt 0:01:30]} 27. Ba3 {[%emt 0:00:00]} Re6 {[%emt 0:01:30]} 28. Bc4 {[%emt 0:00:00]} Rc8 {[%emt 0:00:30]} 29. Bxe6+ {[%emt 0:00:30]} Qxe6 {[%emt 0:00:30]} 30. Qxd6 {[%emt 0:00:30]} Qh3 {[%emt 0:00:30]} 31. Rc1 {[%emt 0:00:30]} Re8 {[%emt 0:00:30]} 32. Rc7 {[%emt 0:00:30]} Bc8 {[%emt 0:00:30]} 33. Re7 {[%emt 0:02:30]} Qh5 {[%emt 0:01:30]} 34. Qd5+ {[%emt 0:00:30]} Qxd5 {[%emt 0:00:00]} 35. Rxe8+ {[%emt 0:00:00]} Kf7 {[%emt 0:00:00]} 36. Rf8+ {[%emt 0:00:00]} Kg6 {[%emt 0:00:30]} 37. exd5 {[%emt 0:00:30]} Bb7 {[%emt 0:00:30]} 38. d6 {[%emt 0:00:00]} 1-0

[Event "Istanbul Open 2018"]
[Site "Istanbul"]
[Date "2018.09.02"]
[Round "1"]
[White "Oner, Arda Caner"]
[Black "Kavacik, Ahmet"]
[Result "0-1"]
[ECO "B01"]
[WhiteElo "1530"]
[BlackElo "1800"]
[Annotator "NA"]
[PlyCount "108"]
[EventDate "2018.09.02"]
[EventType "swiss"]
[EventCountry "TUR"]
[SourceTitle "playchess.com"]
[Source "ChessBase"]
[SourceQuality "1"]
[TimeControl "5400+30"]

1. e4 {[%emt 0:00:30]} d5 {[%emt 0:02:30]} 2. exd5 {[%emt 0:00:00]} Qxd5 {[%emt 0:00:30]} 3. Nc3 {[%emt 0:00:00]} Qd8 {[%emt 0:00:00]} 4. Nf3 {[%emt 0:00:30]} Bg4 {[%emt 0:00:00]} 5. Be2 {[%emt 0:01:30] B01: Scandinavian Defence} (5. h3 Bxf3 6. Qxf3 c6 7. Ne4 e6 8. d3 Nd7 9. Bf4 Ngf6 10. O-O-O Nb6 11. Be5 Be7 12. Qg3 O-O 13. Be2 Nbd7 14. Bc7 Qc8 15. c4 b5 {0-1 (58) Shirazi,K (2379)-Le Roux,J (2568) Le Port Marly 2014}) 5... Nf6 {[%emt 0:00:30]} 6. O-O {[%emt 0:01:30]} e6 {[%emt 0:00:00]} 7. Re1 {[%emt 0:01:30]} c6 {[%emt 0:00:00]} 8. h3 {[%emt 0:05:30]} Bxf3 {[%emt 0:00:30]} 9. Bxf3 {[%emt 0:00:00]} Bd6 {[%emt 0:00:30]} 10. d4 {[%emt 0:02:00]} O-O {[%emt 0:00:30]} 11. Ne4 {[%emt 0:04:30]} Nxe4 $146 {[%emt 0:02:30]} ({Predecessor:} 11... Be7 12. Nxf6+ Bxf6 {1-0 (67) Hulshof,P (2191)-Schaar,A (1981) Goch 2010}) 12. Bxe4 {[%emt 0:00:30]} Nd7 {[%emt 0:00:00]} 13. a4 {[%emt 0:01:30]} Qc7 {[%emt 0:00:00]} 14. a5 {[%emt 0:06:30]} a6 {[%emt 0:03:30]} 15. c4 {[%emt 0:04:30]} Nf6 {[%emt 0:00:30]} 16. Bf3 {[%emt 0:00:30]} Bb4 {[%emt 0:01:30]} 17. Bd2 {[%emt 0:24:30]} Bxd2 {[%emt 0:01:30]} 18. Qxd2 {[%emt 0:02:30]} Rad8 {[%emt 0:00:30]} 19. Red1 {[%emt 0:05:30]} Rd7 {[%emt 0:00:30]} 20. c5 {[%emt 0:02:30]} Rfd8 {[%emt 0:00:30]} 21. Qb4 {[%emt 0:00:30]} Qf4 {[%emt 0:03:30]} 22. Rd2 {[%emt 0:08:30]} (22. Qb3 $15) 22... e5 {[%emt 0:06:30]} 23. Rad1 {[%emt 0:00:30]} e4 {[%emt 0:02:30]} 24. d5 $17 {[%emt 0:06:30]} cxd5 {[%emt 0:06:30]} 25. Rd4 {[%emt 0:02:34]} Qc7 {[%emt 0:09:30]} 26. Be2 {[%emt 0:01:04]} g6 {[%emt 0:01:30]} 27. Qc3 {[%emt 0:00:34]} Ne8 {[%emt 0:06:30]} 28. b4 {[%emt 0:01:30]} Ng7 {[%emt 0:01:30]} 29. Bg4 {[%emt 0:03:44]} f5 {[%emt 0:04:30]} 30. Be2 {[%emt 0:00:08]} Ne6 {[%emt 0:00:30]} 31. R4d2 {[%emt 0:00:36]} Kf7 {[%emt 0:04:30]} 32. Qb3 {[%emt 0:01:45]} Qe5 {[%emt 0:01:30]} 33. c6 {[%emt 0:04:23]} bxc6 {[%emt 0:01:30]} 34. Bxa6 {[%emt 0:00:17]} Rb8 {[%emt 0:03:30]} 35. Bf1 {[%emt 0:00:56]} d4 {[%emt 0:02:30]} 36. Bc4 {[%emt 0:00:35]} d3 {[%emt 0:00:30]} 37. a6 {[%emt 0:05:52]} Ke7 {[%emt 0:02:30]} 38. Qa4 {[%emt 0:00:42]} Qd6 {[%emt 0:02:30]} 39. Bxe6 {[%emt 0:00:21]} Kxe6 {[%emt 0:01:30]} 40. a7 {[%emt 0:00:32]} Ra8 {[%emt 0:00:00]} 41. Qb3+ {[%emt 0:02:25]} Qd5 {[%emt 0:00:00]} 42. Qc3 {[%emt 0:00:24]} Rdxa7 {[%emt 0:00:30]} 43. f3 {[%emt 0:00:33]} Ra3 {[%emt 0:03:30]} 44. fxe4 {[%emt 0:00:13]} fxe4 {[%emt 0:01:30]} 45. Qg7 {[%emt 0:00:22]} Qd7 {[%emt 0:00:30]} 46. Qh6 {[%emt 0:00:18]} Qd4+ {[%emt 0:00:00]} 47. Kh1 {[%emt 0:00:13]} e3 {[%emt 0:02:00]} 48. Rc2 {[%emt 0:00:33]} Qe4 {[%emt 0:00:30]} 49. Qxh7 {[%emt 0:01:10]} d2 {[%emt 0:04:30]} 50. Rf1 {[%emt 0:00:43]} R8a7 {[%emt 0:00:30]} 51. Rxc6+ {[%emt 0:00:27]} Qxc6 {[%emt 0:00:30]} 52. Qxg6+ {[%emt 0:00:03]} Kd5 {[%emt 0:01:30]} 53. Qg8+ {[%emt 0:01:00]} Ke4 {[%emt 0:02:17]} 54. Qe8+ {[%emt 0:00:29]} Qxe8 {[%emt 0:00:04]} 0-1